fUST/lending_fUST_20240703
["ID","MTS","AMOUNT","RATE_DAILY","PERIOD"]
[330940293,1719955838095,-500.0,0.00014061,2]
[330940295,1719955838105,-500.0,0.00014061,2]
[330940297,1719955838114,-500.0,0.00014061,2]
[330940299,1719955838123,-500.0,0.00014061,2]
[330940301,1719955838133,-596.15,0.00014061,2]
[330940303,1719955838143,-531.72919795,0.00014061,2]
[330940304,1719955838152,-128.54748745,0.00014061,2]
[330940327,1719955840430,-371.45251255,0.00014061,2]
[330940328,1719955840441,-500.0,0.00014061,2]
[330940329,1719955840451,-410.08132373,0.00014061,2]
[330940362,1719955843388,-500.0,0.0001406,2]
[330940363,1719955843398,-89.91867627,0.00014061,2]
[330940364,1719955843408,-500.0,0.00014061,2]
[330940365,1719955843417,-44.56027494,0.00014061,2]
[330940366,1719955843429,-455.43972506,0.00014061,2]
[330940367,1719955843439,-51.56027494,0.00014061,2]
[330940424,1719955846137,-500.0,0.0001406,2]
[330940425,1719955846147,-558.46972506,0.00014061,2]
[330940426,1719955846157,-500.0,0.00014061,2]
[330940427,1719955846166,-441.53027494,0.00014061,2]
[330940428,1719955846196,-58.46972506,0.00014061,2]
[330940430,1719955846206,-500.0,0.00014061,2]
[330940432,1719955846215,-500.0,0.00014061,2]
[330940433,1719955846224,-522.59023114,0.00014061,2]
[330940434,1719955846234,-1724.36,0.00014061,2]
[330940436,1719955846243,-500.0,0.00014061,2]
[330940438,1719955846252,-500.0,0.00014061,2]
[330940440,1719955846261,-2756.1,0.00014061,2]
[330940441,1719955846270,-3816.31,0.00014061,2]
[330940442,1719955846280,-500.0,0.00014061,2]
[330940444,1719955846289,-638.9,0.00014061,2]
[330940446,1719955846298,-500.0,0.00014061,2]
[330940448,1719955846307,-500.0,0.00014061,2]
[330940450,1719955846316,-500.0,0.00014061,2]
[330940452,1719955846326,-500.0,0.00014061,2]
[330940454,1719955846335,-500.0,0.00014061,2]
[330940456,1719955846344,-500.0,0.00014061,2]
[330940458,1719955846354,-550.86486122,0.00014061,2]
[330940460,1719955846363,-500.0,0.00014061,2]
[330940462,1719955846372,-505.2,0.00014061,2]
[330940464,1719955846381,-500.0,0.00014061,2]
[330940466,1719955846391,-500.0,0.00014061,2]
[330940468,1719955846400,-500.0,0.00014061,2]
[330940470,1719955846409,-500.0,0.00014061,2]
[330940472,1719955846418,-500.0,0.00014061,2]
[330940474,1719955846427,-1320.1,0.00014061,2]
[330940476,1719955846436,-738.11,0.00014061,2]
[330940478,1719955846445,-500.0,0.00014061,2]
[330940480,1719955846454,-500.0,0.00014061,2]
[330940482,1719955846463,-500.0,0.00014061,2]
[330940484,1719955846472,-593.09,0.00014061,2]
[330940486,1719955846481,-621.60527271,0.00014061,2]
[330940488,1719955846491,-871.99,0.00014061,2]
[330940490,1719955846500,-500.0,0.00014061,2]
[330940492,1719955846509,-500.0,0.00014061,2]
[330940494,1719955846518,-5389.76,0.00014061,2]
[330940496,1719955846527,-2184.72,0.00014061,2]
[330940498,1719955846536,-500.0,0.00014061,2]
[330940500,1719955846545,-801.88,0.00014061,2]
[330940502,1719955846554,-500.0,0.00014061,2]
[330940504,1719955846564,-2333.33,0.00014061,2]
[330940506,1719955846573,-1195.16,0.00014061,2]
[330940508,1719955846582,-500.0,0.00014061,2]
[330940511,1719955846592,-500.0,0.00014061,2]
[330940513,1719955846601,-1069.15,0.00014061,2]
[330940515,1719955846610,-500.0,0.00014061,2]
[330940517,1719955846619,-500.0,0.00014061,2]
[330940519,1719955846629,-500.0,0.00014061,2]
[330940521,1719955846638,-508.13071172,0.00014062,2]
[330940522,1719955846648,-500.0,0.00014062,2]
[330940525,1719955846658,-500.0,0.00014062,2]
[330940527,1719955846667,-500.0,0.00014062,2]
[330940529,1719955846677,-500.0,0.00014062,2]
[330940531,1719955846687,-500.0,0.00014062,2]
[330940533,1719955846696,-500.0,0.00014062,2]
[330940535,1719955846705,-500.0,0.00014062,2]
[330940537,1719955846715,-500.0,0.00014062,2]
[330940539,1719955846724,-500.0,0.00014062,2]
[330940541,1719955846733,-500.0,0.00014062,2]
[330940543,1719955846743,-500.0,0.00014062,2]
[330940545,1719955846752,-500.0,0.00014062,2]
[330940547,1719955846762,-500.0,0.00014062,2]
[330940549,1719955846771,-500.0,0.00014062,2]
[330940551,1719955846781,-500.0,0.00014062,2]
[330940553,1719955846790,-500.0,0.00014062,2]
[330940555,1719955846800,-484.57036608,0.00014062,2]
[330940557,1719955846810,-500.0,0.00014062,2]
[330940559,1719955846819,-510.65213788,0.00014062,2]
[330940561,1719955846829,-500.0,0.00014062,2]
[330940563,1719955846839,-500.0,0.00014062,2]
[330940565,1719955846848,-500.0,0.00014062,2]
[330940567,1719955846857,-500.0,0.00014062,2]
[330940569,1719955846867,-500.0,0.00014062,2]
[330940571,1719955846876,-500.0,0.00014062,2]
[330940573,1719955846886,-500.0,0.00014062,2]
[330940575,1719955846895,-515.57382204,0.00014062,2]
[330940577,1719955846910,-500.0,0.00014062,2]
[330940579,1719955846920,-500.0,0.00014062,2]
[330940581,1719955846929,-649.59,0.00014062,2]
[330940583,1719955846939,-500.0,0.00014062,2]
[330940585,1719955846950,-698.42,0.00014062,2]
[330940587,1719955846959,-501.28598276,0.00014062,2]
[330940589,1719955846968,-500.0,0.00014062,2]
[330940591,1719955846977,-500.0,0.00014062,2]
[330940593,1719955846988,-500.0,0.00014062,2]
[330940595,1719955846998,-500.0,0.00014062,2]
[330940597,1719955847007,-500.0,0.00014062,2]
[330940600,1719955847017,-500.0,0.00014062,2]
[330940602,1719955847026,-500.0,0.00014062,2]
[330940603,1719955847035,-500.0,0.00014062,2]
[330940606,1719955847045,-500.0,0.00014062,2]
[330940608,1719955847054,-500.0,0.00014062,2]
[330940610,1719955847065,-500.0,0.00014062,2]
[330940611,1719955847074,-500.0,0.00014062,2]
[330940613,1719955847083,-500.0,0.00014062,2]
[330940615,1719955847092,-500.0,0.00014062,2]
[330940617,1719955847102,-500.0,0.00014062,2]
[330940619,1719955847111,-500.0,0.00014062,2]
[330940621,1719955847120,-500.0,0.00014062,2]
[330940623,1719955847129,-500.0,0.00014062,2]
[330940626,1719955847140,-500.0,0.00014062,2]
[330940628,1719955847150,-500.0,0.00014062,2]
[330940630,1719955847160,-500.0,0.00014062,2]
[330940632,1719955847169,-500.0,0.00014062,2]
[330940634,1719955847178,-555.98858523,0.00014062,2]
[330940636,1719955847187,-500.0,0.00014062,2]
[330940638,1719955847196,-500.0,0.00014062,2]
[330940640,1719955847205,-500.0,0.00014062,2]
[330940642,1719955847214,-500.0,0.00014062,2]
[330940644,1719955847223,-500.0,0.00014062,2]
[330940646,1719955847231,-500.0,0.00014062,2]
[330940648,1719955847241,-565.06102136,0.00014062,2]
[330940649,1719955847250,-500.0,0.00014062,2]
[330940651,1719955847259,-500.0,0.00014062,2]
[330940654,1719955847269,-6904.33,0.00014062,2]
[330940656,1719955847278,-500.0,0.00014062,2]
[330940657,1719955847287,-500.0,0.00014062,2]
[330940660,1719955847296,-500.0,0.00014062,2]
[330940661,1719955847305,-500.0,0.00014062,2]
[330940664,1719955847314,-500.0,0.00014062,2]
[330940666,1719955847324,-513.09950139,0.00014062,2]
[330940668,1719955847333,-500.0,0.00014062,2]
[330940670,1719955847342,-507.86062579,0.00014062,2]
[330940672,1719955847351,-500.0,0.00014062,2]
[330940673,1719955847360,-500.0,0.00014062,2]
[330940676,1719955847370,-500.0,0.00014062,2]
[330940678,1719955847379,-500.0,0.00014062,2]
[330940679,1719955847388,-500.0,0.00014062,2]
[330940682,1719955847397,-500.0,0.00014062,2]
[330940684,1719955847407,-500.0,0.00014062,2]
[330940686,1719955847416,-500.0,0.00014062,2]
[330940688,1719955847425,-500.0,0.00014062,2]
[330940690,1719955847435,-500.0,0.00014062,2]
[330940692,1719955847443,-500.0,0.00014062,2]
[330940694,1719955847452,-500.0,0.00014062,2]
[330940696,1719955847462,-3528.55,0.00014062,2]
[330940698,1719955847471,-417.80167404,0.00014062,2]
[330940700,1719955847481,-500.0,0.00014062,2]
[330940702,1719955847490,-500.0,0.00014062,2]
[330940704,1719955847499,-500.0,0.00014062,2]
[330940706,1719955847508,-500.0,0.00014062,2]
[330940708,1719955847518,-500.0,0.00014062,2]
[330940710,1719955847527,-500.0,0.00014062,2]
[330940712,1719955847536,-500.0,0.00014062,2]
[330940714,1719955847545,-500.0,0.00014062,2]
[330940716,1719955847555,-500.0,0.00014062,2]
[330940718,1719955847564,-500.0,0.00014062,2]
[330940720,1719955847573,-500.0,0.00014062,2]
[330940722,1719955847583,-558.07,0.00014062,2]
[330940724,1719955847592,-500.0,0.00014062,2]
[330940726,1719955847602,-500.0,0.00014062,2]
[330940728,1719955847611,-500.0,0.00014062,2]
[330940730,1719955847620,-645.45,0.00014062,2]
[330940732,1719955847629,-500.0,0.00014062,2]
[330940734,1719955847639,-3807.93,0.00014062,2]
[330940736,1719955847648,-500.0,0.00014062,2]
[330940738,1719955847657,-500.0,0.00014062,2]
[330940740,1719955847666,-509.61141228,0.00014062,2]
[330940742,1719955847675,-500.0,0.00014062,2]
[330940744,1719955847684,-517.02411873,0.00014062,2]
[330940746,1719955847693,-500.0,0.00014062,2]
[330940748,1719955847702,-500.0,0.00014062,2]
[330940750,1719955847712,-500.0,0.00014062,2]
[330940752,1719955847721,-500.0,0.00014062,2]
[330940754,1719955847730,-500.0,0.00014062,2]
[330940756,1719955847739,-1075.15,0.00014062,2]
[330940758,1719955847749,-500.0,0.00014062,2]
[330940760,1719955847759,-500.0,0.00014062,2]
[330940762,1719955847768,-500.0,0.00014062,2]
[330940764,1719955847778,-500.0,0.00014062,2]
[330940766,1719955847787,-500.0,0.00014062,2]
[330940768,1719955847796,-500.0,0.00014062,2]
[330940770,1719955847806,-500.0,0.00014062,2]
[330940772,1719955847815,-500.0,0.00014062,2]
[330940774,1719955847823,-7830.15,0.00014062,2]
[330940776,1719955847832,-517.8319729,0.00014062,2]
[330940778,1719955847841,-503.5846725,0.00014062,2]
[330940780,1719955847850,-500.0,0.00014062,2]
[330940782,1719955847859,-500.0,0.00014062,2]
[330940784,1719955847869,-717.73,0.00014062,2]
[330940786,1719955847879,-500.0,0.00014062,2]
[330940788,1719955847889,-500.0,0.00014062,2]
[330940790,1719955847900,-500.0,0.00014062,2]
[330940792,1719955847912,-506.00687624,0.00014062,2]
[330940794,1719955847922,-500.0,0.00014062,2]
[330940796,1719955847932,-500.0,0.00014062,2]
[330940798,1719955847941,-500.0,0.00014062,2]
[330940800,1719955847952,-500.0,0.00014062,2]
[330940802,1719955847961,-500.0,0.00014062,2]
[330940804,1719955847971,-500.0,0.00014062,2]
[330940820,1719955848115,-521.5,0.00014062,2]
[330940822,1719955848124,-500.0,0.00014062,2]
[330940824,1719955848133,-500.0,0.00014062,2]
[330940826,1719955848143,-500.0,0.00014062,2]
[330940828,1719955848152,-500.0,0.00014062,2]
[330940830,1719955848161,-500.0,0.00014062,2]
[330940832,1719955848170,-1263.05,0.00014062,2]
[330940834,1719955848179,-506.80832845,0.00014062,2]
[330940836,1719955848188,-527.46,0.00014062,2]
[330940838,1719955848198,-427.57151659,0.00014062,2]
[330940840,1719955848207,-500.0,0.00014062,2]
[330940842,1719955848216,-500.0,0.00014062,2]
[330940844,1719955848225,-500.0,0.00014062,2]
[330940846,1719955848234,-500.0,0.00014062,2]
[330940848,1719955848243,-500.0,0.00014062,2]
[330940850,1719955848252,-500.0,0.00014062,2]
[330940852,1719955848262,-500.0,0.00014062,2]
[330940854,1719955848271,-500.0,0.00014062,2]
[330940856,1719955848280,-500.0,0.00014063,2]
[330940857,1719955848288,-500.0,0.00014063,2]
[330940859,1719955848298,-500.0,0.00014063,2]
[330940862,1719955848308,-500.73030307,0.00014063,2]
[330940863,1719955848318,-500.0,0.00014063,2]
[330940866,1719955848328,-500.0,0.00014063,2]
[330940867,1719955848337,-500.0,0.00014063,2]
[330940869,1719955848346,-500.0,0.00014063,2]
[330940871,1719955848356,-500.0,0.00014063,2]
[330940873,1719955848365,-500.0,0.00014063,2]
[330940875,1719955848375,-500.0,0.00014063,2]
[330940878,1719955848384,-500.0,0.00014063,2]
[330940879,1719955848393,-500.0,0.00014063,2]
[330940881,1719955848404,-154.83742071,0.00014063,2]
[330940883,1719955848413,-707.3,0.00014063,2]
[330940885,1719955848422,-500.0,0.00014063,2]
[330940888,1719955848432,-500.0,0.00014063,2]
[330940890,1719955848442,-500.0,0.00014063,2]
[330940891,1719955848451,-500.0,0.00014063,2]
[330940893,1719955848460,-500.0,0.00014063,2]
[330940896,1719955848470,-812.35,0.00014063,2]
[330940897,1719955848480,-500.0,0.00014063,2]
[330940900,1719955848489,-500.0,0.00014063,2]
[330940901,1719955848498,-500.0,0.00014063,2]
[330940903,1719955848507,-974.72,0.00014063,2]
[330940905,1719955848516,-500.0,0.00014063,2]
[330940908,1719955848526,-500.0,0.00014063,2]
[330940910,1719955848536,-603.93,0.00014063,2]
[330940912,1719955848545,-500.0,0.00014063,2]
[330940914,1719955848557,-500.0,0.00014063,2]
[330940916,1719955848570,-726.98,0.00014063,2]
[330940918,1719955848579,-500.0,0.00014063,2]
[330940920,1719955848588,-290.09179027,0.00014063,2]
[330940922,1719955848597,-616.73,0.00014063,2]
[330940924,1719955848607,-807.36,0.00014063,2]
[330940926,1719955848617,-540.6,0.00014063,2]
[330940928,1719955848626,-500.0,0.00014063,2]
[330940929,1719955848635,-500.0,0.00014063,2]
[330940932,1719955848644,-500.0,0.00014063,2]
[330940933,1719955848654,-500.0,0.00014063,2]
[330940935,1719955848663,-500.0,0.00014063,2]
[330940937,1719955848673,-659.27657016,0.00014064,2]
[330940939,1719955848682,-3691.66,0.00014064,2]
[330940941,1719955848691,-1546.73,0.00014064,2]
[330940944,1719955848701,-4897.9,0.00014064,2]
[330940946,1719955848710,-292.863491,0.00014064,2]
[330940948,1719955848719,-500.0,0.00014064,2]
[330940950,1719955848728,-1248.95,0.00014064,2]
[330940951,1719955848737,-500.0,0.00014064,2]
[330940953,1719955848747,-500.0,0.00014064,2]
[330940955,1719955848756,-500.0,0.00014064,2]
[330940958,1719955848765,-858.07,0.00014065,2]
[330940959,1719955848774,-1012.5,0.00014065,2]
[330940961,1719955848784,-8717.18,0.00014065,2]
[330940964,1719955848793,-4687.46,0.00014065,2]
[330940966,1719955848804,-982.65,0.00014066,2]
[330940968,1719955848813,-585.63,0.00014066,2]
[330940969,1719955848822,-500.0,0.00014066,2]
[330940971,1719955848832,-500.0,0.00014066,2]
[330940974,1719955848841,-500.0,0.00014066,2]
[330940976,1719955848851,-500.0,0.00014066,2]
[330940977,1719955848860,-500.0,0.00014066,2]
[330940980,1719955848869,-13352.02,0.00014066,2]
[330940981,1719955848879,-500.0,0.00014066,2]
[330940983,1719955848887,-153.0,0.00014192,2]
[330940985,1719955848897,-153.0,0.0001421,2]
[330940988,1719955848909,-153.0,0.0001421,2]
[330940989,1719955848919,-529.57,0.00014334,2]
[330940991,1719955848928,-1685.25,0.00014334,2]
[330940993,1719955848938,-500.0,0.00014334,2]
[330940995,1719955848947,-13752.19,0.00014334,2]
[330940997,1719955848956,-500.0,0.00014334,2]
[330940999,1719955848966,-500.0,0.00014334,2]
[330941001,1719955848975,-262.49683942,0.00014335,2]
[330941003,1719955848985,-500.0,0.00014335,2]
[330941005,1719955848995,-500.0,0.00014335,2]
[330941007,1719955849004,-500.0,0.00014335,2]
[330941009,1719955849014,-500.0,0.00014335,2]
[330941011,1719955849023,-500.0,0.00014335,2]
[330941013,1719955849032,-1222.91,0.00014335,2]
[330941015,1719955849042,-553.73501593,0.00014335,2]
[330941017,1719955849051,-500.0,0.00014335,2]
[330941019,1719955849061,-500.0,0.00014335,2]
[330941021,1719955849072,-1025.98,0.00014335,2]
[330941023,1719955849082,-1269.58,0.00014335,2]
[330941025,1719955849092,-500.0,0.00014335,2]
[330941027,1719955849101,-500.0,0.00014335,2]
[330941029,1719955849111,-500.0,0.00014335,2]
[330941031,1719955849119,-500.0,0.00014335,2]
[330941033,1719955849129,-596.15,0.00014335,2]
[330941035,1719955849138,-500.0,0.00014335,2]
[330941037,1719955849147,-500.0,0.00014335,2]
[330941039,1719955849156,-500.0,0.00014335,2]
[330941041,1719955849165,-500.0,0.00014335,2]
[330941043,1719955849174,-610.03,0.00014335,2]
[330941045,1719955849183,-500.0,0.00014335,2]
[330941047,1719955849192,-500.0,0.00014335,2]
[330941049,1719955849202,-500.0,0.00014335,2]
[330941051,1719955849212,-3807.93,0.00014335,2]
[330941053,1719955849221,-500.0,0.00014335,2]
[330941055,1719955849230,-1724.36,0.00014335,2]
[330941057,1719955849239,-500.0,0.00014335,2]
[330941059,1719955849248,-500.0,0.00014335,2]
[330941061,1719955849257,-2756.1,0.00014335,2]
[330941063,1719955849266,-3816.31,0.00014335,2]
[330941065,1719955849275,-500.0,0.00014335,2]
[330941066,1719955849284,-638.9,0.00014335,2]
[330941067,1719955849293,-500.0,0.00014335,2]
[330941068,1719955849303,-500.0,0.00014335,2]
[330941069,1719955849312,-500.0,0.00014335,2]
[330941070,1719955849321,-500.0,0.00014335,2]
[330941071,1719955849330,-500.0,0.00014335,2]
[330941072,1719955849340,-500.0,0.00014335,2]
[330941073,1719955849349,-500.0,0.00014335,2]
[330941074,1719955849358,-505.2,0.00014335,2]
[330941075,1719955849368,-500.0,0.00014335,2]
[330941076,1719955849377,-500.0,0.00014335,2]
[330941077,1719955849386,-536.94,0.00014335,2]
[330941078,1719955849396,-500.0,0.00014335,2]
[330941079,1719955849405,-500.0,0.00014335,2]
[330941080,1719955849414,-1320.1,0.00014335,2]
[330941081,1719955849423,-738.11,0.00014335,2]
[330941083,1719955849432,-500.0,0.00014335,2]
[330941085,1719955849442,-500.0,0.00014335,2]
[330941087,1719955849451,-500.0,0.00014335,2]
[330941089,1719955849460,-593.09,0.00014335,2]
[330941091,1719955849469,-871.99,0.00014335,2]
[330941093,1719955849479,-500.0,0.00014335,2]
[330941095,1719955849488,-500.0,0.00014335,2]
[330941097,1719955849497,-5389.76,0.00014335,2]
[330941099,1719955849507,-2184.72,0.00014335,2]
[330941101,1719955849516,-514.34,0.00014335,2]
[330941103,1719955849525,-801.88,0.00014335,2]
[330941105,1719955849534,-500.0,0.00014335,2]
[330941107,1719955849544,-500.0,0.00014335,2]
[330941109,1719955849553,-2333.33,0.00014335,2]
[330941111,1719955849563,-1195.16,0.00014335,2]
[330941113,1719955849572,-500.0,0.00014335,2]
[330941115,1719955849582,-500.0,0.00014335,2]
[330941117,1719955849591,-1069.15,0.00014335,2]
[330941119,1719955849600,-500.0,0.00014335,2]
[330941121,1719955849609,-500.0,0.00014335,2]
[330941123,1719955849617,-500.0,0.00014335,2]
[330941125,1719955849626,-500.0,0.00014336,2]
[330941127,1719955849636,-500.0,0.00014336,2]
[330941129,1719955849646,-500.0,0.00014336,2]
[330941131,1719955849655,-500.0,0.00014336,2]
[330941133,1719955849664,-500.0,0.00014336,2]
[330941134,1719955849673,-640.78873844,0.00014336,2]
[330941136,1719955849683,-500.0,0.00014336,2]
[330941139,1719955849693,-500.0,0.00014336,2]
[330941140,1719955849702,-500.0,0.00014336,2]
[330941142,1719955849711,-500.0,0.00014336,2]
[330941145,1719955849721,-500.0,0.00014336,2]
[330941146,1719955849730,-553.93109122,0.00014336,2]
[330941149,1719955849739,-500.0,0.00014336,2]
[330941150,1719955849749,-500.0,0.00014336,2]
[330941152,1719955849758,-500.0,0.00014336,2]
[330941154,1719955849768,-500.0,0.00014336,2]
[330941156,1719955849777,-500.0,0.00014336,2]
[330941158,1719955849786,-500.0,0.00014336,2]
[330941159,1719955849795,-500.0,0.00014336,2]
[330941161,1719955849805,-500.0,0.00014336,2]
[330941163,1719955849814,-500.0,0.00014336,2]
[330941165,1719955849823,-649.59,0.00014336,2]
[330941166,1719955849832,-500.0,0.00014336,2]
[330941167,1719955849842,-698.42,0.00014336,2]
[330941168,1719955849851,-500.0,0.00014336,2]
[330941170,1719955849860,-500.0,0.00014336,2]
[330941172,1719955849870,-500.0,0.00014336,2]
[330941174,1719955849879,-500.0,0.00014336,2]
[330941176,1719955849890,-500.0,0.00014336,2]
[330941178,1719955849900,-500.0,0.00014336,2]
[330941180,1719955849913,-500.0,0.00014336,2]
[330941182,1719955849922,-500.0,0.00014336,2]
[330941184,1719955849933,-500.0,0.00014336,2]
[330941185,1719955849943,-500.0,0.00014336,2]
[330941187,1719955849953,-500.0,0.00014336,2]
[330941189,1719955849962,-500.0,0.00014336,2]
[330941191,1719955849971,-500.0,0.00014336,2]
[330941192,1719955849981,-500.0,0.00014336,2]
[330941194,1719955849991,-6904.33,0.00014336,2]
[330941195,1719955849999,-500.0,0.00014336,2]
[330941196,1719955850009,-500.0,0.00014336,2]
[330941197,1719955850019,-500.0,0.00014336,2]
[330941198,1719955850028,-500.0,0.00014336,2]
[330941199,1719955850037,-500.0,0.00014336,2]
[330941200,1719955850046,-500.0,0.00014336,2]
[330941201,1719955850056,-500.0,0.00014336,2]
[330941202,1719955850069,-500.0,0.00014336,2]
[330941203,1719955850077,-500.0,0.00014336,2]
[330941204,1719955850086,-500.0,0.00014336,2]
[330941205,1719955850095,-500.0,0.00014336,2]
[330941206,1719955850103,-508.3,0.00014336,2]
[330941207,1719955850112,-500.0,0.00014336,2]
[330941208,1719955850121,-500.0,0.00014336,2]
[330941209,1719955850131,-3528.55,0.00014336,2]
[330941210,1719955850140,-500.0,0.00014336,2]
[330941211,1719955850150,-500.0,0.00014336,2]
[330941212,1719955850160,-500.0,0.00014336,2]
[330941213,1719955850169,-500.0,0.00014336,2]
[330941214,1719955850178,-500.0,0.00014336,2]
[330941215,1719955850188,-500.0,0.00014336,2]
[330941216,1719955850197,-500.0,0.00014336,2]
[330941217,1719955850206,-500.0,0.00014336,2]
[330941218,1719955850216,-558.07,0.00014336,2]
[330941219,1719955850225,-500.0,0.00014336,2]
[330941220,1719955850234,-500.0,0.00014336,2]
[330941221,1719955850243,-500.0,0.00014336,2]
[330941222,1719955850252,-645.45,0.00014336,2]
[330941223,1719955850262,-500.0,0.00014336,2]
[330941224,1719955850272,-500.0,0.00014336,2]
[330941225,1719955850281,-500.0,0.00014336,2]
[330941226,1719955850291,-500.0,0.00014336,2]
[330941227,1719955850300,-500.0,0.00014336,2]
[330941228,1719955850309,-500.0,0.00014336,2]
[330941229,1719955850318,-1075.15,0.00014336,2]
[330941230,1719955850328,-500.0,0.00014336,2]
[330941231,1719955850337,-500.0,0.00014336,2]
[330941232,1719955850346,-500.0,0.00014336,2]
[330941233,1719955850355,-500.0,0.00014336,2]
[330941234,1719955850365,-500.0,0.00014336,2]
[330941235,1719955850374,-7830.15,0.00014336,2]
[330941236,1719955850383,-500.0,0.00014336,2]
[330941237,1719955850392,-717.73,0.00014336,2]
[330941238,1719955850402,-500.0,0.00014336,2]
[330941239,1719955850411,-500.0,0.00014336,2]
[330941240,1719955850420,-500.0,0.00014336,2]
[330941241,1719955850429,-500.0,0.00014336,2]
[330941242,1719955850439,-500.0,0.00014336,2]
[330941243,1719955850449,-521.5,0.00014336,2]
[330941244,1719955850459,-500.0,0.00014336,2]
[330941245,1719955850469,-1263.05,0.00014336,2]
[330941246,1719955850478,-527.46,0.00014336,2]
[330941247,1719955850487,-500.0,0.00014336,2]
[330941248,1719955850496,-500.0,0.00014336,2]
[330941249,1719955850506,-500.0,0.00014336,2]
[330941250,1719955850516,-500.0,0.00014336,2]
[330941251,1719955850525,-500.0,0.00014336,2]
[330941252,1719955850535,-500.0,0.00014337,2]
[330941253,1719955850544,-500.0,0.00014337,2]
[330941254,1719955850554,-500.0,0.00014337,2]
[330941255,1719955850563,-219.44,0.00014337,2]
[330941256,1719955850572,-500.0,0.00014337,2]
[330941257,1719955850581,-500.0,0.00014337,2]
[330941258,1719955850590,-500.0,0.00014337,2]
[330941259,1719955850600,-500.0,0.00014337,2]
[330941260,1719955850609,-500.0,0.00014337,2]
[330941261,1719955850619,-500.0,0.00014337,2]
[330941262,1719955850627,-500.0,0.00014337,2]
[330941263,1719955850637,-707.3,0.00014337,2]
[330941264,1719955850646,-500.0,0.00014337,2]
[330941265,1719955850656,-500.0,0.00014337,2]
[330941266,1719955850665,-500.0,0.00014337,2]
[330941267,1719955850674,-812.35,0.00014337,2]
[330941268,1719955850684,-543.1,0.00014337,2]
[330941269,1719955850693,-516.24,0.00014337,2]
[330941270,1719955850702,-974.72,0.00014337,2]
[330941271,1719955850711,-500.0,0.00014337,2]
[330941272,1719955850721,-500.0,0.00014337,2]
[330941273,1719955850731,-603.93,0.00014337,2]
[330941274,1719955850740,-726.98,0.00014337,2]
[330941275,1719955850750,-500.0,0.00014337,2]
[330941276,1719955850759,-616.73,0.00014337,2]
[330941277,1719955850769,-807.36,0.00014337,2]
[330941278,1719955850779,-540.6,0.00014337,2]
[330941279,1719955850788,-500.0,0.00014337,2]
[330941280,1719955850797,-500.0,0.00014337,2]
[330941281,1719955850807,-500.0,0.00014337,2]
[330941282,1719955850816,-500.0,0.00014337,2]
[330941283,1719955850826,-500.0,0.00014337,2]
[330941284,1719955850835,-3691.66,0.00014338,2]